bitfinex/quotes_SOLUSD_20260201
["timestamp","ask_amount","ask_price","bid_price","bid_amount"]
[1769977213838,2.44553477,101.48,101.44,3.7541226]
[1769977214848,12.30064423,101.48,101.45,3.7541226]
[1769977215152,12.29868831,101.49,101.45,3.7541226]
[1769977218753,24.6311984,101.5,101.46,3.7541226]
[1769977219079,2.44337193,101.52,101.47,3.7541226]
[1769977219352,12.29409608,101.52,101.47,3.7541226]
[1769977219849,2.44295415,101.51,101.46,3.7541226]
[1769977220650,34.47641366,101.52,101.44,3.93337685]
[1769977220651,14.12748759,101.5,101.44,3.93337685]
[1769977220835,38.75802946,101.5,101.44,3.93337685]
[1769977221027,38.75802946,101.5,101.43,3.93337685]
[1769977221654,88.0191132,101.5,101.43,3.93337685]
[1769977222559,88.0191132,101.5,101.43,13.79231895]
[1769977223360,38.75802946,101.5,101.44,3.93337685]
[1769977227552,38.75802946,101.5,101.44,13.79128141]
[1769977230976,38.75802946,101.5,101.45,3.93337685]
[1769977231841,38.75802946,101.5,101.42,34.509105]
[1769977231842,4.27527085,101.47,101.42,3.93337685]
[1769977233258,9.85610092,101.46,101.42,3.93337685]
[1769977238044,27.38,101.48,101.44,3.93337685]
[1769977238247,60.57378793,101.53,101.44,3.93337685]
[1769977238248,4.27527085,101.5,101.44,3.93337685]
[1769977239140,9.8502758,101.52,101.44,3.93337685]
[1769977239357,41.50554665,101.52,101.44,3.73746151]
[1769977239574,41.50554665,101.52,101.45,3.93337685]
[1769977239755,9.8502758,101.52,101.45,3.93337685]
[1769977240154,34.47596531,101.52,101.47,3.93337685]
[1769977240469,61.85596531,101.52,101.47,3.93337685]
[1769977241169,61.85596531,101.52,101.46,3.93337685]
[1769977241381,34.47596531,101.52,101.46,3.93337685]
[1769977241669,27.38,101.51,101.46,3.93337685]
[1769977242266,9.85221674,101.5,101.46,3.93337685]
[1769977242566,34.48275861,101.5,101.44,9.8576713]
[1769977242764,4.27527085,101.49,101.42,3.93337685]
[1769977243949,31.65527085,101.48,101.42,3.93337685]
[1769977244367,34.49295357,101.47,101.42,3.93337685]
[1769977244667,14.12979535,101.48,101.43,3.93337685]
[1769977245251,38.76519148,101.48,101.43,3.93337685]
[1769977247267,4.27527085,101.48,101.43,13.79219526]
[1769977247467,9.85386369,101.49,101.44,3.93337685]
[1769977248468,34.48480639,101.5,101.44,9.85716695]
[1769977248674,34.48480639,101.5,101.45,3.93337685]
[1769977248842,9.63613273,101.49,101.43,3.93337685]
[1769977249046,27.38,101.48,101.43,3.93337685]
[1769977249774,27.38,101.48,101.42,3.93337685]
[1769977250070,27.38,101.47,101.42,3.93337685]
[1769977250970,9.85610092,101.46,101.42,3.93337685]
[1769977253772,9.85610092,101.46,101.42,13.79325963]
[1769977253949,9.85610092,101.46,101.43,3.93337685]
[1769977254756,34.49368307,101.47,101.43,3.93337685]
[1769977255662,9.85512959,101.47,101.44,3.93337685]
[1769977257265,37.23469451,101.48,101.45,3.93337685]
[1769977257776,27.38,101.48,101.45,3.93337685]
[1769977257954,9.85350444,101.49,101.45,3.93337685]
[1769977258860,4.27527085,101.48,101.42,3.93337685]
[1769977259059,31.65527085,101.48,101.42,3.93337685]
[1769977259357,34.49295357,101.47,101.42,3.93337685]
[1769977259557,34.49295357,101.47,101.43,3.93337685]
[1769977261871,61.87295357,101.47,101.41,3.93337685]
[1769977262180,4.27527085,101.43,101.38,4.13337685]
[1769977262379,3.69447037,101.42,101.37,9.86441126]
[1769977263078,13.55496588,101.42,101.36,34.53006491]
[1769977264382,13.55496588,101.42,101.37,13.69204044]
[1769977264678,13.55496588,101.42,101.38,3.82784726]
[1769977271485,3.61632655,101.41,101.36,3.74886918]
[1769977272163,38.13309182,101.4,101.36,3.74886918]
[1769977273780,9.86193293,101.4,101.36,3.74886918]
[1769977274169,3.61632655,101.38,101.35,3.94886918]
[1769977274970,9.86376972,101.39,101.36,3.74886918]
[1769977275678,31.67527085,101.41,101.36,3.74886918]
[1769977275679,4.27527085,101.41,101.36,3.74886918]
[1769977276772,17.75308215,101.41,101.37,3.74886918]
[1769977277992,14.1367556,101.41,101.37,3.74886918]
[1769977278185,17.75308215,101.41,101.37,3.74886918]
[1769977278493,17.75308215,101.41,101.37,13.61355845]
[1769977278692,17.75308215,101.41,101.38,3.74886918]
[1769977279105,9.86148475,101.41,101.38,3.74886918]
[1769977283195,3.61632655,101.39,101.35,3.94886918]
[1769977283492,3.61632655,101.39,101.35,13.81513545]
[1769977284283,31.67527085,101.4,101.37,3.74886918]
[1769977284284,3.61632655,101.4,101.37,3.74886918]
[1769977284793,3.61632655,101.4,101.36,13.61462499]
[1769977284986,3.61632655,101.39,101.36,13.61462499]
[1769977286394,13.47843236,101.4,101.37,3.74886918]
[1769977287296,13.47768166,101.41,101.37,3.74886918]
[1769977287600,17.75197949,101.42,101.37,3.74886918]
[1769977287989,9.86038209,101.42,101.39,3.74886918]
[1769977291820,9.85415845,101.48,101.39,38.26264513]
[1769977291987,38.76482543,101.48,101.4,3.7425427]
[1769977292188,13.76990704,101.48,101.41,3.7425427]
[1769977293314,3.91574859,101.47,101.4,3.7425427]
[1769977293619,3.91574859,101.47,101.39,87.57717318]
[1769977293806,9.85605659,101.47,101.39,87.57717318]
[1769977294131,3.91574859,101.46,101.39,87.57717318]
[1769977297104,3.91574859,101.47,101.41,3.7425427]
[1769977297707,3.91574859,101.47,101.4,3.7425427]
[1769977298306,3.91574859,101.47,101.41,3.7425427]
[1769977298713,34.48615626,101.49,101.42,34.50995858]
[1769977298714,13.76991752,101.48,101.42,34.50995858]
[1769977299602,3.91574859,101.48,101.42,38.25250128]
[1769977300217,3.91574859,101.48,101.42,61.90995858]
[1769977300513,3.91574859,101.48,101.42,65.65250128]
[1769977300717,3.91574859,101.49,101.42,65.65250128]
[1769977301612,3.91574859,101.49,101.42,114.95244212]
[1769977303116,9.85321715,101.49,101.42,114.95244212]
[1769977303322,3.91574859,101.48,101.42,114.95244212]
[1769977303509,13.76896574,101.49,101.42,114.95244212]
[1769977303818,3.91574859,101.48,101.42,87.55244212]
[1769977304005,3.91574859,101.48,101.4,3.7425427]
[1769977304205,3.91574859,101.48,101.42,34.5097166]
[1769977304606,42.67720535,101.49,101.42,34.5097166]
[1769977304816,3.91574859,101.48,101.43,9.3455616]
[1769977305012,3.91574859,101.48,101.42,61.8897166]
[1769977305013,3.91574859,101.48,101.42,71.2352782]
[1769977306402,3.91574859,101.5,101.44,9.3455616]
[1769977306628,3.91574859,101.51,101.44,9.3455616]
[1769977307818,3.91574859,101.51,101.45,34.49975356]
[1769977309726,4.11574859,101.53,101.46,9.3455616]
[1769977309937,4.11574859,101.53,101.47,36.7255616]
[1769977310430,0.2,101.53,101.48,9.3455616]
[1769977310602,13.76215132,101.56,101.47,27.38]
[1769977310806,13.76215132,101.56,101.48,9.3455616]
[1769977311412,13.76215132,101.56,101.49,9.3455616]
[1769977312337,3.91574859,101.56,101.5,34.48275861]
[1769977312512,3.91574859,101.56,101.5,43.82832021]
[1769977312821,3.91574859,101.56,101.5,34.48275861]
[1769977313724,3.91574859,101.55,101.5,34.48275861]
[1769977314926,3.91574859,101.55,101.5,24.63054187]
[1769977317111,3.91574859,101.54,101.48,9.8538672]
[1769977317718,3.91574859,101.54,101.48,34.48926333]
[1769977318321,13.76225414,101.56,101.48,34.48926333]
[1769977318530,3.91574859,101.55,101.48,34.48926333]
[1769977319151,13.76390127,101.55,101.48,34.48926333]
[1769977319431,3.91574859,101.54,101.48,34.48926333]
[1769977320334,3.91574859,101.54,101.48,43.83482493]
[1769977320515,3.91574859,101.55,101.48,43.83482493]
[1769977320836,3.91574859,101.55,101.49,9.3455616]
[1769977321416,3.91574859,101.55,101.48,93.1056172]
[1769977321733,3.91574859,101.54,101.48,83.7600556]
[1769977321909,3.91574859,101.54,101.48,9.8538672]
[1769977322335,3.91574859,101.54,101.48,34.48926333]
[1769977322836,3.91574859,101.54,101.48,43.83482493]
[1769977324826,3.91574859,101.53,101.46,24.63834048]
[1769977325030,3.91574859,101.53,101.47,9.85496181]
[1769977326321,3.91574859,101.52,101.44,61.86053243]
[1769977326672,3.91574859,101.49,101.44,27.36]
[1769977326937,3.91574859,101.47,101.44,27.36]
[1769977327139,1.74208647,101.47,101.44,37.21760771]
[1769977328929,9.85369844,101.49,101.44,64.03190753]
[1769977329123,13.7314909,101.49,101.44,64.03190753]
[1769977329742,3.87779246,101.48,101.44,64.03190753]
[1769977330149,3.87779246,101.48,101.44,39.38679712]
[1769977332751,3.87779246,101.47,101.43,9.85871364]
[1769977333072,3.87779246,101.45,101.42,9.85955849]
[1769977335771,3.87779246,101.46,101.43,2.16682619]
[1769977336166,3.87779246,101.46,101.43,9.8582161]
[1769977337081,3.87779246,101.45,101.42,9.8595722]
[1769977337369,3.87779246,101.45,101.41,9.86053615]
[1769977338368,3.87779246,101.44,101.41,9.86053615]
[1769977339071,3.87779246,101.44,101.37,54.20686757]
[1769977339256,3.87779246,101.44,101.38,9.86344155]
[1769977340346,3.87779246,101.42,101.38,9.86387847]
[1769977340546,3.87779246,101.42,101.38,12.0294577]
[1769977343874,13.73790917,101.42,101.38,12.0294577]
[1769977344053,3.87779246,101.41,101.38,9.86387847]
[1769977344253,3.87779246,101.41,101.36,9.86539342]
[1769977344671,3.87779246,101.41,101.37,2.16438859]
[1769977344875,3.87779246,101.41,101.38,12.027552]
[1769977345388,3.87779246,101.41,101.37,24.6617301]
[1769977345569,3.87779246,101.4,101.35,3.75503302]
[1769977346658,3.87779246,101.4,101.36,9.86538855]
[1769977346874,13.73982129,101.4,101.36,13.42042157]
[1769977347488,3.87779246,101.4,101.36,13.42042157]
[1769977347859,13.73823721,101.42,101.37,3.55503302]
[1769977348073,3.87779246,101.42,101.37,3.55503302]
[1769977348673,13.73629333,101.44,101.38,3.55503302]
[1769977348876,13.73629333,101.44,101.4,3.55503302]
[1769977349074,3.87779246,101.45,101.4,3.55503302]
[1769977349279,3.87779246,101.46,101.41,3.55503302]
[1769977349577,3.87779246,101.46,101.42,3.55503302]
[1769977349879,9.85362011,101.49,101.43,3.55503302]
[1769977350261,3.87779246,101.48,101.43,3.55503302]
[1769977351080,3.87779246,101.48,101.44,13.41307718]
[1769977351584,13.73208709,101.48,101.44,13.41307718]
[1769977352886,3.87779246,101.48,101.44,13.41307718]
[1769977353380,3.87779246,101.47,101.44,13.41307718]
[1769977353566,3.87779246,101.47,101.43,13.41360395]
[1769977353966,3.87779246,101.47,101.44,9.85799765]
[1769977354770,13.73220866,101.48,101.44,13.41303067]
[1769977354978,3.87779246,101.49,101.45,13.41114917]
[1769977357284,3.87779246,101.49,101.46,3.55503302]
[1769977357782,3.84774354,101.5,101.46,3.55503302]
[1769977357963,3.84774354,101.5,101.44,13.43517556]
[1769977358165,3.84774354,101.5,101.43,13.4358555]
[1769977359488,9.8531875,101.49,101.44,9.85804416]
[1769977359683,3.84774354,101.48,101.44,9.85804416]
[1769977361395,3.84774354,101.51,101.46,3.5772883]
[1769977361696,3.84774354,101.51,101.48,13.43144675]
[1769977362778,12.80580393,101.55,101.49,3.5772883]
[1769977362980,2.95807919,101.55,101.51,3.5772883]
[1769977363283,13.89269111,101.58,101.52,3.5772883]
[1769977363481,4.04774354,101.58,101.53,3.5772883]
[1769977363792,0.2,101.58,101.55,3.5772883]
[1769977364679,0.2,101.58,101.55,13.42383205]
[1769977365271,3.55400303,101.57,101.53,13.42655529]
[1769977365591,3.55400303,101.57,101.5,3.55406768]
[1769977365592,2.34329586,101.56,101.5,3.55406768]
[1769977366580,2.34329586,101.56,101.5,13.40568028]
[1769977367292,9.84736582,101.55,101.5,13.40568028]
[1769977367473,12.1873731,101.55,101.5,13.40568028]
[1769977368301,12.1873731,101.55,101.51,3.55406768]
[1769977371607,2.3334974,101.54,101.48,9.85365387]
[1769977371894,2.3334974,101.54,101.48,13.40772155]
[1769977372289,2.3334974,101.54,101.49,13.4071692]
[1769977372688,6.60707067,101.55,101.5,3.55406768]
[1769977373199,16.45489507,101.55,101.5,3.55406768]
[1769977373699,2.33012174,101.54,101.5,3.55406768]
[1769977375097,2.33012174,101.54,101.5,13.40576356]
[1769977376403,12.17886854,101.54,101.5,3.55406768]
[1769977376712,2.32520227,101.53,101.49,13.40686662]
[1769977377499,2.32520227,101.53,101.5,3.55406768]
[1769977377881,12.16948386,101.55,101.51,3.55406768]
[1769977378081,2.32201608,101.56,101.51,3.55406768]
[1769977378280,16.4431684,101.57,101.51,3.55406768]
[1769977378903,16.4431684,101.57,101.52,9.8502758]
[1769977379101,16.4431684,101.57,101.52,13.40434348]
[1769977379302,12.16789755,101.57,101.53,3.55406768]
[1769977379504,0.2,101.58,101.53,3.55406768]
[1769977379705,0.2,101.59,101.56,3.55406768]
[1769977380285,0.2,101.6,101.54,9.35489264]
[1769977380497,0.2,101.6,101.57,3.55406768]
[1769977380899,11.26685581,101.6,101.56,3.55406768]
[1769977381888,40.14842587,101.6,101.56,3.55406768]
[1769977383290,2.51436535,101.59,101.55,13.40081271]
[1769977383488,16.83222801,101.6,101.56,3.55406768]
[1769977385905,41.43852722,101.6,101.56,3.55406768]
[1769977386108,2.50997308,101.59,101.54,13.40187795]
[1769977386317,2.50997308,101.59,101.55,3.55406768]
[1769977386995,2.50853619,101.56,101.52,3.55406768]
[1769977387188,6.78380704,101.57,101.53,13.40331791]
[1769977388003,9.84639621,101.56,101.53,3.55406768]
[1769977388394,12.35210794,101.56,101.52,3.55129603]
[1769977389410,36.96809848,101.56,101.52,3.55129603]
[1769977391218,2.50159553,101.55,101.49,9.8531875]
[1769977391411,2.50159553,101.52,101.47,3.55129603]
[1769977391594,3.64481651,101.5,101.45,9.85629313]
[1769977392201,3.64481651,101.5,101.44,107.35195497]
[1769977392413,3.64481651,101.5,101.44,97.49437761]
[1769977392919,3.64481651,101.5,101.43,9.85853614]
[1769977393308,13.49800401,101.49,101.42,34.50810733]
[1769977393708,13.49800401,101.49,101.43,3.55129603]
[1769977394029,38.13097277,101.49,101.43,3.55129603]
[1769977394324,3.64481651,101.48,101.43,3.55129603]
[1769977395222,9.85512959,101.47,101.43,13.41016773]
[1769977395417,9.85512959,101.47,101.44,3.55129603]
[1769977395629,13.4999461,101.47,101.44,3.55129603]
[1769977398119,13.4999461,101.47,101.43,3.55129603]
[1769977402023,3.64481651,101.46,101.42,3.55129603]
[1769977403529,13.50188895,101.45,101.42,3.55129603]
[1769977403929,3.64481651,101.44,101.41,0.2]
[1769977405022,13.50380127,101.44,101.41,0.2]
[1769977406627,59.93999102,101.47,101.41,3.75129603]
[1769977406936,3.64481651,101.46,101.41,0.2]
[1769977407107,3.64481651,101.44,101.37,3.55129603]
[1769977407307,3.64481651,101.44,101.39,9.86288235]
[1769977407513,3.64481651,101.44,101.39,13.41417838]
[1769977409212,9.85901607,101.43,101.39,13.41417838]
[1769977409828,9.85901607,101.43,101.4,3.55129603]
[1769977410225,13.50312154,101.44,101.4,3.55129603]
[1769977410428,38.14360511,101.46,101.4,3.55129603]
[1769977410629,3.64481651,101.46,101.4,3.55129603]
[1769977411333,13.50101431,101.46,101.41,9.86096045]
[1769977411520,13.50101431,101.46,101.42,3.55129603]
[1769977411922,3.64481651,101.45,101.42,3.55129603]
[1769977413418,13.50236637,101.45,101.42,3.55129603]
[1769977415925,3.64481651,101.47,101.43,3.55129603]
[1769977417138,3.64481651,101.46,101.42,13.41128214]
[1769977417539,3.64481651,101.46,101.42,3.55129603]
[1769977418836,13.6335606,101.47,101.43,3.70995695]
[1769977419143,13.6335606,101.47,101.44,3.70995695]
[1769977419334,3.77795514,101.47,101.44,3.70995695]
[1769977419539,5.14986981,101.51,101.44,3.70995695]
[1769977419718,5.14986981,101.51,101.46,3.70995695]
[1769977420033,3.77795514,101.5,101.44,3.70995695]
[1769977421138,3.77795514,101.5,101.46,3.70995695]
[1769977421838,13.62860706,101.52,101.46,3.70995695]
[1769977422038,3.77795514,101.51,101.46,3.70995695]
[1769977424520,3.77795514,101.52,101.48,3.70995695]
[1769977425843,13.62844896,101.52,101.48,13.43253814]
[1769977427838,3.77795514,101.52,101.49,3.57925763]
[1769977429419,2.47578498,101.5,101.42,3.57925763]
[1769977429632,2.47578498,101.5,101.44,3.57925763]
[1769977429831,12.32850661,101.5,101.44,3.57925763]
[1769977431232,12.32850661,101.5,101.46,3.57925763]
[1769977431436,9.8517206,101.51,101.46,3.57925763]
[1769977431622,12.32458731,101.52,101.46,3.57925763]
[1769977435538,12.32458731,101.52,101.48,3.57925763]
[1769977436348,2.46868604,101.51,101.48,3.57925763]
[1769977437629,12.32062093,101.51,101.46,13.43498091]
[1769977437826,2.46653925,101.5,101.46,3.57925763]
[1769977438231,2.46653925,101.5,101.46,13.43534704]
[1769977439350,12.31945115,101.5,101.46,13.43534704]
[1769977441349,12.3149855,101.51,101.47,3.57925763]
[1769977442055,2.46239166,101.5,101.47,3.57925763]
[1769977442862,12.31468565,101.5,101.47,3.57925763]
[1769977443853,2.46038864,101.49,101.46,9.85546618]
[1769977444559,2.46038864,101.5,101.47,13.43427408]
[1769977445449,2.45940435,101.51,101.47,13.43427408]
[1769977446237,2.45940435,101.51,101.47,3.57925763]
[1769977447740,36.93276378,101.52,101.48,3.53123432]
[1769977448253,34.47624498,101.52,101.48,3.53123432]
[1769977448554,2.45557896,101.51,101.48,3.53123432]
[1769977448745,12.30770486,101.51,101.48,3.53123432]
[1769977449855,36.92997653,101.52,101.48,3.53123432]
[1769977450365,4.27527085,101.51,101.47,3.83785542]
[1769977450656,4.27527085,101.51,101.47,13.69293518]
[1769977450964,4.27527085,101.51,101.45,9.85660851]
[1769977451143,4.27527085,101.49,101.43,3.83785542]
[1769977452843,38.76482543,101.48,101.43,3.83785542]
[1769977454762,3.71151361,101.47,101.41,9.86084147]
[1769977454969,3.71151361,101.45,101.4,9.86160658]
[1769977455145,3.71151361,101.45,101.39,24.6568807]
[1769977455952,3.71151361,101.45,101.4,9.86148039]
[1769977456148,17.84472187,101.45,101.39,24.6568807]
[1769977456838,17.84472187,101.45,101.4,3.53123432]
[1769977457042,42.48740299,101.45,101.4,3.53123432]
[1769977458265,42.48740299,101.45,101.41,3.53123432]
[1769977460870,3.71151361,101.44,101.41,3.53123432]
[1769977461660,3.71151361,101.44,101.38,9.86335597]
[1769977462049,3.71151361,101.42,101.36,24.66284024]
[1769977462254,3.71151361,101.42,101.36,34.52866502]
[1769977463567,3.71151361,101.42,101.37,3.53123432]
[1769977464565,3.71151361,101.42,101.38,13.39511279]
[1769977465651,3.71151361,101.42,101.38,9.86387847]
[1769977465849,3.71151361,101.42,101.39,3.53123432]
[1769977466950,13.57153211,101.42,101.39,3.53123432]
[1769977468771,13.57153211,101.42,101.37,34.52616535]
[1769977470476,13.57153211,101.42,101.37,24.66183334]
[1769977470773,13.57153211,101.42,101.38,3.53123432]
[1769977471179,3.71151361,101.43,101.38,3.53123432]
[1769977471354,3.71151361,101.44,101.38,3.53123432]
[1769977472562,3.71151361,101.42,101.37,9.86460042]
[1769977472768,3.71151361,101.42,101.35,162.50041202]
[1769977472965,3.71151361,101.39,101.34,9.86733936]
[1769977474766,4.27527085,101.4,101.34,9.86733936]
[1769977474767,9.86387847,101.38,101.34,10.77063152]
[1769977474975,13.57539208,101.38,101.34,10.77063152]
[1769977475872,3.71151361,101.37,101.33,1.00140872]
[1769977476166,3.71151361,101.37,101.33,10.86994456]
[1769977477072,3.71151361,101.37,101.34,0.9004832]
[1769977477460,3.71151361,101.37,101.33,10.86775236]
[1769977478073,13.57656173,101.37,101.33,10.86775236]
[1769977478968,9.86504812,101.37,101.33,10.86775236]
[1769977479171,3.53212691,101.36,101.33,10.86775236]
[1769977480669,3.53212691,101.37,101.34,0.89583245]
[1769977483479,13.3969951,101.37,101.34,0.89583245]
[1769977483875,3.53212691,101.38,101.35,0.89104852]
[1769977484664,3.53212691,101.39,101.35,0.89104852]
[1769977486074,3.53212691,101.39,101.35,10.75696864]
[1769977488489,3.53212691,101.39,101.36,0.88537124]
[1769977491989,3.49078256,101.38,101.34,34.53720149]
[1769977492205,3.49078256,101.38,101.33,0.1]
[1769977494390,3.49078256,101.36,101.33,0.1]
[1769977497788,3.49078256,101.35,101.33,0.1]
[1769977498791,3.49078256,101.34,101.33,0.1]
[1769977498984,3.49078256,101.34,101.32,0.2]
[1769977499184,3.49078256,101.34,101.31,0.1]
[1769977499376,3.49078256,101.34,101.3,0.1]
[1769977499576,3.49078256,101.33,101.29,0.0654218]
[1769977500109,3.49078256,101.32,101.28,0.1]
[1769977500402,3.49078256,101.32,101.27,0.1]
[1769977500580,3.49078256,101.3,101.27,1.63843379]
[1769977501092,3.49078256,101.32,101.27,1.63843379]
[1769977502294,13.36110073,101.32,101.28,1.53653541]
[1769977502599,3.49078256,101.31,101.28,1.53653541]
[1769977503390,13.3600349,101.33,101.28,1.53653541]
[1769977503783,3.49078256,101.32,101.28,1.53653541]
[1769977504299,3.49078256,101.32,101.29,11.40732329]
[1769977505105,3.49078256,101.31,101.27,11.50779936]
[1769977506196,13.36195301,101.31,101.27,11.50779936]
[1769977506407,9.87117045,101.31,101.27,11.50779936]
[1769977506581,3.49078256,101.3,101.27,11.50779936]
[1769977506782,13.36094844,101.32,101.28,1.53198622]
[1769977507704,3.49078256,101.32,101.28,1.53198622]
[1769977509386,3.49078256,101.32,101.29,9.8726429]
[1769977510003,56.3641132,101.35,101.3,1.52852323]
[1769977510004,3.52085151,101.34,101.3,1.52852323]
[1769977510595,13.38870184,101.34,101.3,1.52852323]
[1769977511004,3.52085151,101.34,101.3,1.52852323]
[1769977512102,3.52085151,101.36,101.32,1.52685083]
[1769977512706,3.52085151,101.36,101.31,9.8706939]
[1769977512983,3.52085151,101.36,101.29,53.62647849]
[1769977512984,3.52085151,101.36,101.3,11.39721837]
[1769977513201,3.52085151,101.36,101.29,11.3981451]
[1769977513805,3.52085151,101.36,101.27,1.62521663]
[1769977514006,73.81311309,101.37,101.27,0.1]
[1769977514007,3.52085151,101.33,101.27,0.1]
[1769977514191,3.52085151,101.3,101.27,9.97459267]
[1769977514509,3.52085151,101.3,101.27,11.4998093]
[1769977514716,3.52085151,101.3,101.27,1.62521663]
[1769977514906,3.52085151,101.3,101.27,0.1]
[1769977516708,9.8706939,101.31,101.27,1.62361975]
[1769977516900,13.39154541,101.31,101.27,1.62361975]
[1769977517099,1.3972,156.81,101.28,3.60462577]
[1769977517100,9.881,101.4,101.28,3.60462577]
[1769977517400,30.02785743,101.35,101.28,3.60462577]
[1769977517602,30.02785743,101.35,101.27,3.70462577]
[1769977517603,4.27527085,101.34,101.27,3.70462577]
[1769977518715,9.86874568,101.33,101.29,3.60462577]
[1769977519118,13.38959719,101.33,101.29,3.60462577]
[1769977519912,9.86874568,101.33,101.29,3.60462577]
[1769977520121,3.52085151,101.31,101.28,3.60462577]
[1769977520497,3.52085151,101.31,101.27,13.57871672]
[1769977521829,3.52085151,101.31,101.27,3.70462577]
[1769977522007,3.52085151,101.29,101.24,13.48166292]
[1769977523317,3.52085151,101.28,101.24,13.48166292]
[1769977523724,3.52085151,101.28,101.25,3.60462577]
[1769977524402,3.52085151,101.3,101.25,3.60462577]
[1769977525214,13.39318179,101.3,101.25,3.60462577]
[1769977525523,13.39318179,101.3,101.26,3.60462577]
[1769977526425,3.52085151,101.3,101.26,13.47973015]
[1769977529028,13.39259837,101.3,101.26,13.47973015]
[1769977529421,3.52085151,101.3,101.26,13.47973015]
[1769977531030,13.39208631,101.31,101.27,3.60462577]
[1769977531211,3.52085151,101.3,101.27,13.47908815]
[1769977531412,3.52085151,101.3,101.26,13.48010418]
[1769977533230,3.52085151,101.3,101.27,13.47902788]
[1769977533831,3.52085151,101.33,101.29,3.60462577]
[1769977535331,3.52085151,101.33,101.3,13.47629408]
[1769977537429,3.49222652,101.34,101.3,13.47629408]
[1769977537610,3.49222652,101.34,101.31,3.56697743]
[1769977537813,3.49222652,101.34,101.3,13.43864574]
[1769977539038,13.36049987,101.34,101.3,13.43864574]
[1769977544447,3.49222652,101.36,101.32,3.56697743]
[1769977544648,3.49222652,101.39,101.34,3.56697743]
[1769977544848,3.49222652,101.39,101.35,3.56697743]
[1769977545434,3.42164963,101.4,101.37,3.47765867]
[1769977545950,3.42164963,101.41,101.37,3.47765867]
[1769977546124,13.282618,101.41,101.37,13.34174537]
[1769977548242,3.42164963,101.39,101.36,9.86558571]
[1769977548445,3.42164963,101.39,101.35,13.34402012]
[1769977548941,3.42164963,101.39,101.36,9.86561141]
[1769977549556,3.42164963,101.39,101.36,13.34327008]
[1769977550250,13.28505374,101.39,101.34,24.66797528]
[1769977550457,3.42164963,101.37,101.31,3.47765867]
[1769977550630,3.42164963,101.37,101.31,13.34787228]
[1769977550836,3.42164963,101.37,101.33,9.86871637]
[1769977551238,3.42164963,101.37,101.33,13.34637504]
[1769977551452,13.28505374,101.39,101.35,9.86631446]
[1769977551633,13.28505374,101.39,101.35,13.34397313]
[1769977551837,13.28505374,101.39,101.35,3.47765867]
[1769977552040,13.28505374,101.39,101.35,13.34443069]
[1769977554653,3.42164963,101.39,101.35,13.34443069]
[1769977554843,3.42164963,101.38,101.34,13.34484554]
[1769977555152,4.27527085,101.34,101.25,3.47765867]
[1769977555336,3.42164963,101.29,101.25,9.87611534]
[1769977555546,3.42164963,101.29,101.24,9.8770417]
[1769977555940,3.42164963,101.28,101.24,13.35470037]
[1769977556657,3.42164963,101.28,101.22,13.35653079]
[1769977557043,3.42164963,101.25,101.19,3.47765867]
[1769977557244,3.42164963,101.25,101.2,9.88083169]
[1769977557439,3.42164963,101.27,101.21,3.47765867]
[1769977557765,3.42164963,101.27,101.22,13.35681075]
[1769977557945,13.29625893,101.27,101.23,9.8784726]
[1769977559856,3.42164963,101.27,101.23,13.35613127]
[1769977560463,13.29721747,101.26,101.21,3.47765867]
[1769977560647,13.29721747,101.26,101.22,9.87926393]
[1769977560845,3.42164963,101.25,101.19,9.88211656]
[1769977561043,3.42164963,101.25,101.19,9.88237084]
[1769977561244,3.42164963,101.25,101.18,3.47765867]
[1769977561464,3.42164963,101.25,101.18,13.36058733]
[1769977561665,3.42164963,101.23,101.17,9.98400455]
[1769977561966,3.42164963,101.23,101.17,0.1]
[1769977562870,3.42164963,101.22,101.17,0.1]
[1769977563256,3.42164963,101.17,101.14,3.22826766]
[1769977563462,3.42164963,101.17,101.1,3.47765867]
[1769977563663,3.42164963,101.15,101.1,3.47765867]
[1769977564161,3.42164963,101.12,101.07,13.37086973]
[1769977564377,3.42164963,101.12,101.07,3.47765867]
[1769977564677,3.42164963,101.11,101.07,3.47765867]
[1769977564974,16.9868637,101.11,101.07,3.47765867]
[1769977565277,16.9868637,101.11,101.01,36.78976074]
[1769977565278,5.36086188,101.08,101.01,3.47765867]
[1769977565568,11.0195479,101.09,101.04,3.47765867]
[1769977565768,3.42164963,101.08,101.01,3.47765867]
[1769977565967,3.42164963,101.08,101.02,3.47765867]
[1769977566151,3.42164963,101.08,101.01,9.36976074]
[1769977566152,3.42164963,101.08,101.03,3.47765867]
[1769977566356,3.42164963,101.06,100.98,3.47765867]
[1769977566563,3.42164963,101.05,100.99,3.47765867]
[1769977566753,3.42164963,101.03,100.97,3.47765867]
[1769977567271,3.42164963,101.01,100.91,8.42074922]
[1769977567470,8.81563832,101.0,100.94,9.36976074]
[1769977567657,8.81563832,101.0,100.91,12.69602007]
[1769977567966,31.71527085,101.04,100.96,9.36976074]
[1769977567967,4.27527085,101.04,100.96,9.36976074]
[1769977568168,4.27527085,101.04,100.91,3.26323002]
[1769977568169,6.1927095,101.03,100.99,3.53239881]
[1769977568373,6.19065634,101.03,101.0,9.36976074]
[1769977568561,3.52013547,101.07,100.98,9.36976074]